{"text_format":"3","workbook":"xlsx","n_sheets":2,"sheets":["Začetek","Poročni proračun"],"read":"whole","date_system":"1900"}

{"sheet":"Začetek","index":0,"n_rows":7,"n_cols":2,"rows_kept":7}
[null,"O TEJ PREDLOGI"]
[null,"S to predlogo lahko zabeležite dejanske stroške poroke za različne elemente ter jih primerjate s proračunom."]
[null,"V ustrezne tabele vnesite stroške za oblačila, dekoracije, darila, cvetje, glasbo, fotografiranje, poročno slavje, tiskovino in prevoz ter razne druge stroške."]
[null,"Skupni predvideni in skupni dejanski stroški so samodejno izračunani."]
[null,"Opomba: "]
[null,"Dodatna navodila so na voljo v stolpcu A na delovnem listu POROČNI PRORAČUN. To besedilo je namerno skrito. Če želite besedilo premakniti, izberite stolpec A, nato izberite še IZBRIŠI. Če želite besedilo razkriti, izberite stolpec A, nato zamenjajte barvo pisave."]
[null,"Za več informacij o tabelah v tabeli pritisnite tipko SHIFT in nato F10, izberite možnost TABELA, nato pa še NADOMESTNO BESEDILO."]

{"sheet":"Poročni proračun","index":1,"n_rows":93,"n_cols":4,"rows_kept":93,"merged":[[0,1,0,3],[2,1,2,3],[6,1,6,3],[15,1,15,3],[25,1,25,3],[34,1,34,3],[43,1,43,3],[50,1,50,3],[59,1,59,3],[68,1,68,3],[77,1,77,3],[85,1,85,3]]}
[null,"POROČNI PRORAČUN"]
[]
[null,"SKUPNI STROŠKI "]
[null,"Element ","Predvideni","Dejansko"]
[null,"Stroški skupaj ",{"$f":"SUM(Oblačila[[#Totals],[Predvideno]],Dekoracija[[#Totals],[Predvideno]],Darila[[#Totals],[Predvideno]],Cvetje[[#Totals],[Predvideno]],Glasba[[#Totals],[Predvideno]],Fotografije[[#Totals],[Predvideno]],Poročno_slavje[[#Totals],[Predvideno]],Pisemski_papir_in_tiskanje[[#Totals],[Predvideno]],Prevoz[[#Totals],[Predvideno]],Drugi_stroški[[#Totals],[Predvideno]])","v":0},{"$f":"SUM(Oblačila[[#Totals],[Dejansko]],Dekoracija[[#Totals],[Dejansko]],Darila[[#Totals],[Dejansko]],Cvetje[[#Totals],[Dejansko]],Glasba[[#Totals],[Dejansko]],Fotografije[[#Totals],[Dejansko]],Poročno_slavje[[#Totals],[Dejansko]],Pisemski_papir_in_tiskanje[[#Totals],[Dejansko]],Prevoz[[#Totals],[Dejansko]],Drugi_stroški[[#Totals],[Dejanski]],)","v":0}]
[]
[null,"OBLAČILA"]
[null,"Element ","Predvideno","Dejansko"]
[null,"Zaročni prstan"]
[null,"Poročna prstana"]
[null,"Nevestina poročna obleka"]
[null,"Tančica"]
[null,"Drugo:"]
[null,"Skupni znesek za oblačila",{"$f":"SUBTOTAL(109,Oblačila[Predvideno])","v":0},{"$f":"SUBTOTAL(109,Oblačila[Dejansko])","v":0}]
[]
[null,"DEKORACIJA"]
[null,"Element ","Predvideno","Dejansko"]
[null,"Pentlje za cerkvene klopi/druge sedeže"]
[null,"Dekoracije na mizah (brez rož)"]
[null,"Svečke"]
[null,"Osvetlitev"]
[null,"Baloni"]
[null,"Drugo:"]
[null,"Skupni znesek za dekoracijo",{"$f":"SUBTOTAL(109,Dekoracija[Predvideno])","v":0},{"$f":"SUBTOTAL(109,Dekoracija[Dejansko])","v":0}]
[]
[null,"DARILA"]
[null,"Element ","Predvideno","Dejansko"]
[null,"Udeleženci"]
[null,"Nevesta in ženin"]
[null,"Starši"]
[null,"Govorniki/drugi udeleženci"]
[null,"Drugo:"]
[null,"Skupni znesek za darila",{"$f":"SUBTOTAL(109,Darila[Predvideno])","v":0},{"$f":"SUBTOTAL(109,Darila[Dejansko])","v":0}]
[]
[null,"CVETJE"]
[null,"Element ","Predvideno","Dejansko"]
[null,"Šopki"]
[null,"Naprsni šopki"]
[null,"Zapestni šopki"]
[null,"Poroka"]
[null,"Drugo:"]
[null,"Skupni znesek za cvetje",{"$f":"SUBTOTAL(109,Cvetje[Predvideno])","v":0},{"$f":"SUBTOTAL(109,Cvetje[Dejansko])","v":0}]
[]
[null,"GLASBA"]
[null,"Element ","Predvideno","Dejansko"]
[null,"Glasba za poroko"]
[null,"Skupina/DJ za poročno slavje"]
[null,"Drugo:"]
[null,"Skupni znesek za glasbo",{"$f":"SUBTOTAL(109,Glasba[Predvideno])","v":0},{"$f":"SUBTOTAL(109,Glasba[Dejansko])","v":0}]
[]
[null,"FOTOGRAFIRANJE"]
[null,"Element ","Predvideno","Dejansko"]
[null,"Uradne"]
[null,"Zabavne"]
[null,"Dodatni natisi"]
[null,"Fotoalbumi"]
[null,"Drugo:"]
[null,"Skupni znesek za fotografiranje",{"$f":"SUBTOTAL(109,Fotografije[Predvideno])","v":0},{"$f":"SUBTOTAL(109,Fotografije[Dejansko])","v":0}]
[]
[null,"POROČNO SLAVJE "]
[null,"Element ","Predvideno","Dejansko"]
[null,"Stroški najema prostora/dvorane"]
[null,"Mize in stoli"]
[null,"Hrana"]
[null,"Prti"]
[null,"Drugo:"]
[null,"Skupni zneske za poročno slavje (brez glasbe in dekoracije)",{"$f":"SUBTOTAL(109,Poročno_slavje[Predvideno])","v":0},{"$f":"SUBTOTAL(109,Poročno_slavje[Dejansko])","v":0}]
[]
[null,"TISKOVINA"]
[null,"Element ","Predvideno","Dejansko"]
[null,"Vabila"]
[null,"Obvestila"]
[null,"Zahvalne kartice"]
[null,"Osebna tiskovina"]
[null,"Drugo:"]
[null,"Skupni znesek za tiskovino",{"$f":"SUBTOTAL(109,Pisemski_papir_in_tiskanje[Predvideno])","v":0},{"$f":"SUBTOTAL(109,Pisemski_papir_in_tiskanje[Dejansko])","v":0}]
[]
[null,"PREVOZ"]
[null,"Element ","Predvideno","Dejansko"]
[null,"Limuzine/avtomobili"]
[null,"Parkiranje"]
[null,"Taksiji"]
[null,"Drugo:"]
[null,"Skupni znesek za prevoz",{"$f":"SUBTOTAL(109,Prevoz[Predvideno])","v":0},{"$f":"SUBTOTAL(109,Prevoz[Dejansko])","v":0}]
[]
[null,"DRUGI STROŠKI"]
[null,"Element ","Predvideno","Dejanski"]
[null,"Matičar"]
[null,"Plačilo najema cerkve/prostora za poroko"]
[null,"Koordinator poroke"]
[null,"Predporočna generalka"]
[null,"Drugo:"]
[null,"Skupni znesek drugih stroškov",{"$f":"SUBTOTAL(109,Drugi_stroški[Predvideno])","v":0},{"$f":"SUBTOTAL(109,Drugi_stroški[Dejanski])","v":0}]